[Event "*** Titled Tuesday Blitz"]
[Site "Chess.com"]
[Date "2020.05.12"]
[Round "4"]
[White "Hikaru"]
[Black "SpasKozhuharov"]
[Result "1-0"]
[WhiteElo "3239"]
[BlackElo "2662"]
[TimeControl "180+1"]
[EndTime "10:36:42 PDT"]
[Termination "Hikaru won by resignation"]

1. Nf3 {[%clk 0:03:00.9]} 1... d5 {[%clk 0:02:59.4]} 2. e3 {[%clk 0:03:00.7]}
2... Nf6 {[%clk 0:02:58.3]} 3. c4 {[%clk 0:03:00.6]} 3... e6 {[%clk 0:02:53.5]}
4. b3 {[%clk 0:03:00]} 4... Be7 {[%clk 0:02:51.9]} 5. Bb2 {[%clk 0:03:00]} 5...
O-O {[%clk 0:02:52.5]} 6. d4 {[%clk 0:03:00.2]} 6... b6 {[%clk 0:02:49.9]} 7.
Bd3 {[%clk 0:02:58.9]} 7... Bb7 {[%clk 0:02:49.2]} 8. cxd5 {[%clk 0:02:57.8]}
8... exd5 {[%clk 0:02:47.9]} 9. O-O {[%clk 0:02:58.7]} 9... Nbd7 {[%clk
0:02:44.5]} 10. Ne5 {[%clk 0:02:58.2]} 10... Nxe5 {[%clk 0:02:41.2]} 11. dxe5
{[%clk 0:02:57.1]} 11... Ne4 {[%clk 0:02:41.6]} 12. Nc3 {[%clk 0:02:57.5]} 12...
f5 {[%clk 0:02:28.3]} 13. Ne2 {[%clk 0:02:49.7]} 13... Nc5 {[%clk 0:02:23.1]}
14. Bc2 {[%clk 0:02:48.5]} 14... Ne6 {[%clk 0:02:19.4]} 15. a3 {[%clk
0:02:47.1]} 15... c5 {[%clk 0:02:18.8]} 16. b4 {[%clk 0:02:45.3]} 16... cxb4
{[%clk 0:02:15.5]} 17. axb4 {[%clk 0:02:46.2]} 17... Bxb4 {[%clk 0:02:15.5]} 18.
Bb3 {[%clk 0:02:46.6]} 18... Qd7 {[%clk 0:02:10.1]} 19. Qb1 {[%clk 0:02:35.6]}
19... f4 {[%clk 0:02:03]} 20. exf4 {[%clk 0:02:22.9]} 20... Nxf4 {[%clk
0:02:02.7]} 21. Nxf4 {[%clk 0:02:22.3]} 21... Rxf4 {[%clk 0:02:03.6]} 22. Bc1
{[%clk 0:02:21.8]} 22... Re4 {[%clk 0:01:55.3]} 23. Bc2 {[%clk 0:02:20.5]} 23...
Rc4 {[%clk 0:01:52]} 24. Bxh7+ {[%clk 0:02:19.9]} 24... Kh8 {[%clk 0:01:52.6]}
25. Bd3 {[%clk 0:02:16.9]} 25... Rh4 {[%clk 0:01:50.1]} 26. Bg5 {[%clk
0:02:15.1]} 26... Qg4 {[%clk 0:01:32.7]} 27. Bxh4 {[%clk 0:02:12.2]} 27... Qxh4
{[%clk 0:01:33.6]} 28. Ba6 {[%clk 0:02:04]} 28... Bc6 {[%clk 0:01:28.9]} 29. Qd3
{[%clk 0:01:50.8]} 29... Bc5 {[%clk 0:01:26.9]} 30. Qg3 {[%clk 0:01:49.5]} 30...
Qh5 {[%clk 0:01:24.8]} 31. Kh1 {[%clk 0:01:47.5]} 31... d4 {[%clk 0:01:23.4]}
32. Bd3 {[%clk 0:01:44.8]} 32... Rf8 {[%clk 0:01:18.2]} 33. Rxa7 {[%clk
0:01:39.8]} 33... g5 {[%clk 0:01:12.8]} 34. f4 {[%clk 0:01:37.9]} 34... g4
{[%clk 0:00:51.9]} 35. Rh7+ {[%clk 0:01:35]} 1-0

[Event "*** Titled Tuesday Blitz"]
[Site "Chess.com"]
[Date "2020.05.12"]
[Round "4"]
[White "albi1999"]
[Black "mjray79"]
[Result "0-1"]
[WhiteElo "2557"]
[BlackElo "2269"]
[TimeControl "180+1"]
[EndTime "10:36:42 PDT"]
[Termination "mjray79 won by resignation"]

1. d4 {[%clk 0:03:00.4]} 1... Nf6 {[%clk 0:02:59.5]} 2. c4 {[%clk 0:02:59.6]}
2... g6 {[%clk 0:02:59.9]} 3. Nc3 {[%clk 0:02:57.6]} 3... Bg7 {[%clk 0:03:00.3]}
4. e4 {[%clk 0:02:57.6]} 4... d6 {[%clk 0:03:00.8]} 5. h3 {[%clk 0:02:58.2]}
5... O-O {[%clk 0:03:00.8]} 6. Be3 {[%clk 0:02:58.8]} 6... e5 {[%clk 0:03:01]}
7. d5 {[%clk 0:02:58.1]} 7... Nh5 {[%clk 0:03:00.7]} 8. g3 {[%clk 0:02:58]} 8...
Na6 {[%clk 0:02:55.5]} 9. Nge2 {[%clk 0:02:49.6]} 9... f5 {[%clk 0:02:54.2]} 10.
exf5 {[%clk 0:02:46]} 10... gxf5 {[%clk 0:02:55.1]} 11. Qc2 {[%clk 0:02:23.5]}
11... f4 {[%clk 0:02:42.7]} 12. gxf4 {[%clk 0:02:13.7]} 12... exf4 {[%clk
0:02:43.6]} 13. Bd4 {[%clk 0:02:09.4]} 13... Bf5 {[%clk 0:02:42.7]} 14. Qd2
{[%clk 0:02:02]} 14... Nb4 {[%clk 0:02:31.1]} 15. Bxg7 {[%clk 0:01:47.4]} 15...
Nd3+ {[%clk 0:02:23.5]} 16. Kd1 {[%clk 0:01:47.3]} 16... Nxf2+ {[%clk 0:02:23]}
17. Kc1 {[%clk 0:01:42.5]} 17... Nxg7 {[%clk 0:02:10.3]} 18. Rg1 {[%clk
0:01:39.3]} 18... Nd3+ {[%clk 0:02:05.4]} 19. Kd1 {[%clk 0:01:38.2]} 19... f3
{[%clk 0:01:49.5]} 20. Nd4 {[%clk 0:01:35.2]} 20... Ne5 {[%clk 0:01:33.1]} 21.
Qh6 {[%clk 0:01:12.7]} 21... Bg6 {[%clk 0:01:26]} 22. h4 {[%clk 0:00:58.1]}
22... f2 {[%clk 0:01:18.1]} 23. Rg3 {[%clk 0:00:56.8]} 23... Qf6 {[%clk
0:01:11.2]} 24. h5 {[%clk 0:00:49.2]} 24... Bc2+ {[%clk 0:01:09.4]} 0-1

[Event "*** Titled Tuesday Blitz"]
[Site "Chess.com"]
[Date "2020.05.12"]
[Round "4"]
[White "gmcorrales"]
[Black "Mouse-Sleep"]
[Result "1-0"]
[WhiteElo "2790"]
[BlackElo "2514"]
[TimeControl "180+1"]
[EndTime "10:36:46 PDT"]
[Termination "gmcorrales won on time"]

1. e4 {[%clk 0:03:00.9]} 1... c5 {[%clk 0:02:59.4]} 2. Nf3 {[%clk 0:03:01.1]}
2... d6 {[%clk 0:02:59.4]} 3. d4 {[%clk 0:03:01.4]} 3... cxd4 {[%clk 0:03:00.3]}
4. Nxd4 {[%clk 0:03:02.3]} 4... Nf6 {[%clk 0:02:59.6]} 5. Nc3 {[%clk 0:03:02.7]}
5... g6 {[%clk 0:02:58.8]} 6. Be3 {[%clk 0:03:02.6]} 6... Bg7 {[%clk 0:02:59.1]}
7. f3 {[%clk 0:03:00]} 7... O-O {[%clk 0:02:59.3]} 8. Qd2 {[%clk 0:02:59]} 8...
Nc6 {[%clk 0:02:59.8]} 9. O-O-O {[%clk 0:02:58.5]} 9... d5 {[%clk 0:02:59.6]}
10. exd5 {[%clk 0:02:59.4]} 10... Nxd5 {[%clk 0:03:00.1]} 11. Nxc6 {[%clk
0:02:59.5]} 11... bxc6 {[%clk 0:03:01]} 12. Bd4 {[%clk 0:03:00]} 12... Nxc3
{[%clk 0:03:01.6]} 13. Qxc3 {[%clk 0:03:00.2]} 13... Bh6+ {[%clk 0:03:02.3]} 14.
Be3 {[%clk 0:03:00.7]} 14... Bxe3+ {[%clk 0:03:02.9]} 15. Qxe3 {[%clk
0:03:01.6]} 15... Qb6 {[%clk 0:03:03.3]} 16. Qxe7 {[%clk 0:03:00.8]} 16... Be6
{[%clk 0:03:03.8]} 17. Qa3 {[%clk 0:02:59.7]} 17... Rad8 {[%clk 0:03:04]} 18.
Bd3 {[%clk 0:02:59.8]} 18... Rd5 {[%clk 0:03:02.3]} 19. Rde1 {[%clk 0:03:00.2]}
19... Ra5 {[%clk 0:02:41.8]} 20. Qc3 {[%clk 0:03:00.3]} 20... Rxa2 {[%clk
0:02:36.6]} 21. b3 {[%clk 0:03:00.3]} 21... Ra5 {[%clk 0:02:31.4]} 22. Kb2
{[%clk 0:02:56.9]} 22... Rb8 {[%clk 0:01:55.2]} 23. Ra1 {[%clk 0:02:48.5]} 23...
Rc5 {[%clk 0:01:47.5]} 24. Ra6 {[%clk 0:02:40.9]} 24... Rxc3 {[%clk 0:01:20.2]}
25. Rxb6 {[%clk 0:02:41]} 25... axb6 {[%clk 0:01:06.8]} 26. Kxc3 {[%clk
0:02:40.8]} 26... Kf8 {[%clk 0:01:07.2]} 27. Ra1 {[%clk 0:02:39.8]} 27... Ke7
{[%clk 0:01:06.5]} 28. Ra7+ {[%clk 0:02:39.2]} 28... Kd6 {[%clk 0:01:06.3]} 29.
Bc4 {[%clk 0:02:30.1]} 29... c5 {[%clk 0:00:23.5]} 30. Bxe6 {[%clk 0:02:29.4]}
30... Kxe6 {[%clk 0:00:24.4]} 31. Kc4 {[%clk 0:02:28.9]} 31... Rd8 {[%clk
0:00:18.6]} 32. Rb7 {[%clk 0:02:23.5]} 32... Rd2 {[%clk 0:00:14.7]} 33. Rxb6+
{[%clk 0:02:23.4]} 33... Kf5 {[%clk 0:00:15.3]} 34. Kc3 {[%clk 0:02:23.1]} 34...
Rxg2 {[%clk 0:00:15]} 35. Rc6 {[%clk 0:02:23.4]} 35... Rxh2 {[%clk 0:00:14.2]}
36. Rxc5+ {[%clk 0:02:23.7]} 36... Kf4 {[%clk 0:00:14.6]} 37. b4 {[%clk
0:02:24.6]} 37... Rh1 {[%clk 0:00:12.4]} 38. Kb2 {[%clk 0:02:24.2]} 38... Kxf3
{[%clk 0:00:01.5]} 39. b5 {[%clk 0:02:24.6]} 39... Rh4 {[%clk 0:00:02]} 40. Rc3+
{[%clk 0:02:23.9]} 40... Ke2 {[%clk 0:00:01.8]} 41. b6 {[%clk 0:02:24.8]} 1-0

[Event "*** Titled Tuesday Blitz"]
[Site "Chess.com"]
[Date "2020.05.12"]
[Round "4"]
[White "Jbd735"]
[Black "konradrutkowski"]
[Result "1-0"]
[WhiteElo "2440"]
[BlackElo "2251"]
[TimeControl "180+1"]
[EndTime "10:36:47 PDT"]
[Termination "Jbd735 won by resignation"]

1. e4 {[%clk 0:03:00.9]} 1... e5 {[%clk 0:02:59.4]} 2. Nf3 {[%clk 0:03:00.4]}
2... Nc6 {[%clk 0:02:59.9]} 3. Bb5 {[%clk 0:03:00.2]} 3... a6 {[%clk 0:02:58.5]}
4. Ba4 {[%clk 0:03:00.4]} 4... Nf6 {[%clk 0:02:59.1]} 5. O-O {[%clk 0:03:00.4]}
5... Be7 {[%clk 0:02:59.7]} 6. Re1 {[%clk 0:03:00.7]} 6... b5 {[%clk 0:02:59.3]}
7. Bb3 {[%clk 0:03:00.8]} 7... O-O {[%clk 0:02:59.8]} 8. a4 {[%clk 0:02:59]}
8... Bb7 {[%clk 0:02:50.7]} 9. d3 {[%clk 0:02:55.8]} 9... d5 {[%clk 0:02:41.8]}
10. exd5 {[%clk 0:02:44.8]} 10... Nxd5 {[%clk 0:02:41.3]} 11. Nxe5 {[%clk
0:02:38.1]} 11... Nd4 {[%clk 0:02:39.8]} 12. axb5 {[%clk 0:02:11.3]} 12... Nxb3
{[%clk 0:02:37.8]} 13. cxb3 {[%clk 0:02:10]} 13... axb5 {[%clk 0:02:37.8]} 14.
Rxa8 {[%clk 0:02:09]} 14... Bxa8 {[%clk 0:02:30.5]} 15. Nc3 {[%clk 0:02:05.4]}
15... b4 {[%clk 0:02:18]} 16. Ne4 {[%clk 0:02:00.3]} 16... f5 {[%clk 0:02:15]}
17. Nd2 {[%clk 0:01:51.3]} 17... g5 {[%clk 0:01:58.6]} 18. Ndc4 {[%clk
0:01:44.5]} 18... c5 {[%clk 0:01:37]} 19. Qh5 {[%clk 0:01:33.7]} 19... f4 {[%clk
0:01:27.6]} 20. Ng6 {[%clk 0:00:47.8]} 20... Bf6 {[%clk 0:01:03.5]} 21. Nxf8
{[%clk 0:00:42.7]} 21... Qxf8 {[%clk 0:01:04.4]} 22. Re8 {[%clk 0:00:41.6]} 1-0

[Event "*** Titled Tuesday Blitz"]
[Site "Chess.com"]
[Date "2020.05.12"]
[Round "4"]
[White "AGW2016"]
[Black "ARMQUEEN"]
[Result "0-1"]
[WhiteElo "2115"]
[BlackElo "2339"]
[TimeControl "180+1"]
[EndTime "10:36:50 PDT"]
[Termination "ARMQUEEN won by resignation"]

1. e4 {[%clk 0:02:40.5]} 1... e5 {[%clk 0:02:58.2]} 2. Nf3 {[%clk 0:02:40.5]}
2... Nf6 {[%clk 0:02:56.8]} 3. Nxe5 {[%clk 0:02:39.7]} 3... d6 {[%clk
0:02:56.6]} 4. Nf3 {[%clk 0:02:39.3]} 4... Nxe4 {[%clk 0:02:56.9]} 5. d3 {[%clk
0:02:40.1]} 5... Nf6 {[%clk 0:02:56.8]} 6. d4 {[%clk 0:02:40.8]} 6... d5 {[%clk
0:02:57.3]} 7. Bd3 {[%clk 0:02:41.5]} 7... Bd6 {[%clk 0:02:57.1]} 8. Qe2+ {[%clk
0:02:42]} 8... Be6 {[%clk 0:02:56]} 9. Ng5 {[%clk 0:02:41.9]} 9... Qd7 {[%clk
0:02:55.8]} 10. Nxe6 {[%clk 0:02:42.5]} 10... fxe6 {[%clk 0:02:56.2]} 11. O-O
{[%clk 0:02:42.9]} 11... O-O {[%clk 0:02:55.9]} 12. c3 {[%clk 0:02:43.4]} 12...
c5 {[%clk 0:02:54.2]} 13. Nd2 {[%clk 0:02:43.5]} 13... cxd4 {[%clk 0:02:53.4]}
14. cxd4 {[%clk 0:02:43.2]} 14... Nc6 {[%clk 0:02:53.6]} 15. Nf3 {[%clk
0:02:42.5]} 15... Rae8 {[%clk 0:02:52.7]} 16. Bd2 {[%clk 0:02:33.3]} 16... Bc7
{[%clk 0:02:52.3]} 17. Bc3 {[%clk 0:02:28.1]} 17... Qd6 {[%clk 0:02:50.5]} 18.
Ne5 {[%clk 0:02:20.1]} 18... Nd7 {[%clk 0:02:45.5]} 19. f4 {[%clk 0:02:19.8]}
19... Bb6 {[%clk 0:02:41.4]} 20. Qh5 {[%clk 0:02:09.5]} 20... Nf6 {[%clk
0:02:39.1]} 21. Qg5 {[%clk 0:01:50.6]} 21... Nxd4 {[%clk 0:02:35.3]} 22. Kh1
{[%clk 0:01:49.5]} 22... Ne4 {[%clk 0:02:12.7]} 23. Bxe4 {[%clk 0:01:39.9]}
23... dxe4 {[%clk 0:02:13.6]} 24. Rad1 {[%clk 0:01:39.8]} 24... Rf5 {[%clk
0:02:13.8]} 25. Qg4 {[%clk 0:01:39.1]} 25... Ref8 {[%clk 0:02:12]} 26. g3 {[%clk
0:01:30.9]} 26... e3 {[%clk 0:02:04.8]} 27. Bxd4 {[%clk 0:01:27.9]} 27... Bxd4
{[%clk 0:02:04.5]} 28. Qf3 {[%clk 0:01:28.2]} 28... Rxe5 {[%clk 0:01:33.2]} 29.
fxe5 {[%clk 0:01:24.3]} 29... Rxf3 {[%clk 0:01:32.6]} 30. exd6 {[%clk
0:01:21.6]} 30... e2 {[%clk 0:01:32.8]} 31. Rfe1 {[%clk 0:01:17.6]} 31... exd1=Q
{[%clk 0:01:31.3]} 32. Rxd1 {[%clk 0:01:17.6]} 32... e5 {[%clk 0:01:30.8]} 33.
Rc1 {[%clk 0:01:18]} 33... Rf8 {[%clk 0:01:29]} 34. Rc7 {[%clk 0:01:15.3]} 34...
Rd8 {[%clk 0:01:28.5]} 35. d7 {[%clk 0:01:14.8]} 35... Kf7 {[%clk 0:01:28.2]}
36. Rxb7 {[%clk 0:01:14.7]} 36... Ke7 {[%clk 0:01:27.6]} 37. Kg2 {[%clk
0:01:15.3]} 37... Rxd7 {[%clk 0:01:27.5]} 38. Rb8 {[%clk 0:01:15.1]} 38... e4
{[%clk 0:01:23.6]} 39. Kf1 {[%clk 0:01:15.3]} 39... Kd6 {[%clk 0:01:22.1]} 40.
Ke2 {[%clk 0:01:15.6]} 40... Kd5 {[%clk 0:01:22.5]} 41. Rb5+ {[%clk 0:01:14.2]}
41... Kc4 {[%clk 0:01:21.5]} 42. Rb8 {[%clk 0:01:13.4]} 42... Bc5 {[%clk
0:01:20.9]} 43. Rf8 {[%clk 0:01:12.9]} 43... e3 {[%clk 0:01:19.3]} 0-1

[Event "*** Titled Tuesday Blitz"]
[Site "Chess.com"]
[Date "2020.05.12"]
[Round "4"]
[White "DenishevM"]
[Black "Hippotaner"]
[Result "0-1"]
[WhiteElo "2571"]
[BlackElo "2361"]
[TimeControl "180+1"]
[EndTime "10:36:54 PDT"]
[Termination "Hippotaner won by resignation"]

1. d4 {[%clk 0:03:00.7]} 1... Nf6 {[%clk 0:02:59.1]} 2. c4 {[%clk 0:02:59.4]}
2... e6 {[%clk 0:02:57.4]} 3. Nf3 {[%clk 0:02:58.7]} 3... Bb4+ {[%clk
0:02:57.3]} 4. Bd2 {[%clk 0:02:58.8]} 4... a5 {[%clk 0:02:57.6]} 5. g3 {[%clk
0:02:58.6]} 5... b6 {[%clk 0:02:58.1]} 6. Bg2 {[%clk 0:02:59]} 6... Bb7 {[%clk
0:02:58.7]} 7. O-O {[%clk 0:02:59.3]} 7... O-O {[%clk 0:02:58.8]} 8. Qc2 {[%clk
0:02:54.6]} 8... Bxd2 {[%clk 0:02:50.4]} 9. Nbxd2 {[%clk 0:02:54.6]} 9... d6
{[%clk 0:02:50.9]} 10. e4 {[%clk 0:02:49.6]} 10... Nbd7 {[%clk 0:02:51.1]} 11.
e5 {[%clk 0:02:49.1]} 11... dxe5 {[%clk 0:02:47.9]} 12. dxe5 {[%clk 0:02:50]}
12... Ne8 {[%clk 0:02:46.9]} 13. Rad1 {[%clk 0:02:42.9]} 13... Qe7 {[%clk
0:02:46.4]} 14. h4 {[%clk 0:02:25.7]} 14... h6 {[%clk 0:02:46]} 15. Ne4 {[%clk
0:02:22.9]} 15... a4 {[%clk 0:02:35.6]} 16. Rd2 {[%clk 0:01:59.5]} 16... Ra5
{[%clk 0:02:33.9]} 17. Rfd1 {[%clk 0:01:57]} 17... Nxe5 {[%clk 0:02:30.4]} 18.
Nxe5 {[%clk 0:01:51.2]} 18... Rxe5 {[%clk 0:02:30.9]} 19. Rd7 {[%clk 0:01:36.8]}
19... Qb4 {[%clk 0:02:30.7]} 20. f4 {[%clk 0:01:28]} 20... Bxe4 {[%clk
0:02:22.6]} 21. Bxe4 {[%clk 0:01:22.8]} 21... Rc5 {[%clk 0:02:22.7]} 22. b3
{[%clk 0:01:13.8]} 22... axb3 {[%clk 0:02:22.7]} 23. axb3 {[%clk 0:01:14.3]}
23... Nd6 {[%clk 0:02:23.2]} 24. Bf3 {[%clk 0:01:03]} 24... b5 {[%clk 0:02:19]}
25. Rd2 {[%clk 0:00:45.2]} 25... bxc4 {[%clk 0:02:18.1]} 26. bxc4 {[%clk
0:00:44.9]} 26... Rxc4 {[%clk 0:02:15.6]} 27. Qd3 {[%clk 0:00:42.6]} 27... Rc3
{[%clk 0:02:13.8]} 28. Qe2 {[%clk 0:00:42.4]} 28... Nf5 {[%clk 0:02:08.9]} 29.
Rd8 {[%clk 0:00:39]} 29... Nxg3 {[%clk 0:01:59.2]} 30. Rxf8+ {[%clk 0:00:36.6]}
30... Qxf8 {[%clk 0:01:59]} 31. Qd1 {[%clk 0:00:30.7]} 31... Qc5+ {[%clk
0:01:57.5]} 32. Kg2 {[%clk 0:00:30.8]} 32... Nf5 {[%clk 0:01:57.3]} 0-1

[Event "*** Titled Tuesday Blitz"]
[Site "Chess.com"]
[Date "2020.05.12"]
[Round "4"]
[White "CakeinSpace2002"]
[Black "chesstatour"]
[Result "1-0"]
[WhiteElo "2214"]
[BlackElo "1926"]
[TimeControl "180+1"]
[EndTime "10:36:54 PDT"]
[Termination "CakeinSpace2002 won by resignation"]

1. e4 {[%clk 0:02:59.3]} 1... c6 {[%clk 0:02:58.6]} 2. d3 {[%clk 0:02:57.4]}
2... d5 {[%clk 0:02:59.5]} 3. Nd2 {[%clk 0:02:58.3]} 3... g6 {[%clk 0:02:57.8]}
4. g3 {[%clk 0:02:58]} 4... Bg7 {[%clk 0:02:58.1]} 5. Bg2 {[%clk 0:02:58.4]}
5... e5 {[%clk 0:02:57.1]} 6. Ngf3 {[%clk 0:02:58.6]} 6... f5 {[%clk 0:02:55.8]}
7. O-O {[%clk 0:02:58.9]} 7... Ne7 {[%clk 0:02:53.6]} 8. Re1 {[%clk 0:02:58.5]}
8... Qc7 {[%clk 0:02:52.1]} 9. b3 {[%clk 0:02:54.9]} 9... O-O {[%clk 0:02:48.7]}
10. Bb2 {[%clk 0:02:54.4]} 10... dxe4 {[%clk 0:02:43.9]} 11. dxe4 {[%clk
0:02:53.2]} 11... f4 {[%clk 0:02:43.7]} 12. Nc4 {[%clk 0:02:50.9]} 12... Nd7
{[%clk 0:02:29.6]} 13. Qd6 {[%clk 0:02:49]} 13... Qxd6 {[%clk 0:02:24.7]} 14.
Nxd6 {[%clk 0:02:48.1]} 14... Nb6 {[%clk 0:01:30.2]} 15. Bxe5 {[%clk 0:02:43.6]}
15... fxg3 {[%clk 0:01:20.7]} 16. hxg3 {[%clk 0:02:41.4]} 16... Bg4 {[%clk
0:00:23.4]} 17. Bxg7 {[%clk 0:02:39.5]} 17... Kxg7 {[%clk 0:00:23.4]} 18. Nh2
{[%clk 0:02:40.1]} 18... Bc8 {[%clk 0:00:17.8]} 19. Rad1 {[%clk 0:02:38.2]}
19... c5 {[%clk 0:00:16.6]} 20. f4 {[%clk 0:02:36.9]} 20... Nc6 {[%clk
0:00:16.5]} 21. c3 {[%clk 0:02:33.7]} 21... Rb8 {[%clk 0:00:15.5]} 22. e5 {[%clk
0:02:33.3]} 22... Be6 {[%clk 0:00:12.7]} 23. Bxc6 {[%clk 0:02:29.6]} 23... bxc6
{[%clk 0:00:11.7]} 24. c4 {[%clk 0:02:30.1]} 24... a5 {[%clk 0:00:10]} 25. Rd3
{[%clk 0:02:28.8]} 25... a4 {[%clk 0:00:09.7]} 26. Red1 {[%clk 0:02:29]} 26...
axb3 {[%clk 0:00:08.1]} 27. axb3 {[%clk 0:02:28.6]} 27... Nd7 {[%clk 0:00:08.7]}
28. R1d2 {[%clk 0:02:23.7]} 28... Rf7 {[%clk 0:00:09]} 29. Nxf7 {[%clk
0:02:21.9]} 29... Kxf7 {[%clk 0:00:09.5]} 30. Rxd7+ {[%clk 0:02:21.7]} 30...
Bxd7 {[%clk 0:00:09.8]} 31. Rxd7+ {[%clk 0:02:22.6]} 31... Ke6 {[%clk
0:00:10.7]} 32. Rd3 {[%clk 0:02:22.5]} 32... Ra8 {[%clk 0:00:10.5]} 33. Kf2
{[%clk 0:02:22.2]} 33... Kf5 {[%clk 0:00:10.8]} 34. Kf3 {[%clk 0:02:21.6]} 34...
h5 {[%clk 0:00:09.8]} 35. Nf1 {[%clk 0:02:20.8]} 35... Ra1 {[%clk 0:00:04.6]}
36. Ne3+ {[%clk 0:02:20.3]} 1-0

[Event "*** Titled Tuesday Blitz"]
[Site "Chess.com"]
[Date "2020.05.12"]
[Round "4"]
[White "Zmeeed63"]
[Black "sergeikim"]
[Result "0-1"]
[WhiteElo "2180"]
[BlackElo "2413"]
[TimeControl "180+1"]
[EndTime "10:36:58 PDT"]
[Termination "sergeikim won by resignation"]

1. d4 {[%clk 0:03:00.7]} 1... Nf6 {[%clk 0:02:59.3]} 2. c4 {[%clk 0:03:00.6]}
2... g6 {[%clk 0:03:00.2]} 3. Nc3 {[%clk 0:03:01]} 3... Bg7 {[%clk 0:03:01.1]}
4. Nf3 {[%clk 0:03:01.5]} 4... d6 {[%clk 0:03:02]} 5. Bg5 {[%clk 0:03:01.8]}
5... O-O {[%clk 0:03:01]} 6. e3 {[%clk 0:03:02.6]} 6... Nbd7 {[%clk 0:03:00.7]}
7. Be2 {[%clk 0:03:02.9]} 7... b6 {[%clk 0:03:00.6]} 8. O-O {[%clk 0:03:02.5]}
8... Bb7 {[%clk 0:03:00.6]} 9. b4 {[%clk 0:03:01.3]} 9... a5 {[%clk 0:02:58.7]}
10. b5 {[%clk 0:03:01.7]} 10... Ne4 {[%clk 0:02:53.4]} 11. Nxe4 {[%clk
0:03:02.2]} 11... Bxe4 {[%clk 0:02:52.6]} 12. Bd3 {[%clk 0:03:02.7]} 12... Bb7
{[%clk 0:02:51.3]} 13. Rc1 {[%clk 0:03:00.8]} 13... f6 {[%clk 0:02:49]} 14. Bh4
{[%clk 0:03:00.8]} 14... e5 {[%clk 0:02:45.6]} 15. dxe5 {[%clk 0:02:59.7]} 15...
dxe5 {[%clk 0:02:42.3]} 16. Bb1 {[%clk 0:02:58.9]} 16... Nc5 {[%clk 0:02:39.3]}
17. Qe2 {[%clk 0:02:55.5]} 17... Qe7 {[%clk 0:02:26.1]} 18. Rfd1 {[%clk
0:02:53.6]} 18... Rae8 {[%clk 0:02:15.8]} 19. Ne1 {[%clk 0:02:34.9]} 19... g5
{[%clk 0:02:09.9]} 20. Bg3 {[%clk 0:02:35.1]} 20... f5 {[%clk 0:02:10.4]} 21.
Qh5 {[%clk 0:02:33.4]} 21... e4 {[%clk 0:01:54.8]} 22. Rd2 {[%clk 0:02:05.5]}
22... f4 {[%clk 0:01:31.6]} 23. exf4 {[%clk 0:02:05.7]} 23... gxf4 {[%clk
0:01:32.5]} 24. Bh4 {[%clk 0:02:05.8]} 24... Qe5 {[%clk 0:01:31.9]} 25. Qxe5
{[%clk 0:01:39.4]} 25... Bxe5 {[%clk 0:01:24.8]} 26. Rcd1 {[%clk 0:01:35.5]}
26... e3 {[%clk 0:00:55.6]} 27. fxe3 {[%clk 0:01:36.4]} 27... fxe3 {[%clk
0:00:56.2]} 28. Rd8 {[%clk 0:01:36.6]} 28... e2 {[%clk 0:00:52.3]} 0-1

[Event "*** Titled Tuesday Blitz"]
[Site "Chess.com"]
[Date "2020.05.12"]
[Round "4"]
[White "Baby_Shak"]
[Black "Harut-1998"]
[Result "0-1"]
[WhiteElo "2467"]
[BlackElo "2759"]
[TimeControl "180+1"]
[EndTime "10:37:00 PDT"]
[Termination "Harut-1998 won by resignation"]

1. d4 {[%clk 0:03:00.9]} 1... Nf6 {[%clk 0:02:47.1]} 2. Bf4 {[%clk 0:03:00.6]}
2... c5 {[%clk 0:02:44.1]} 3. e3 {[%clk 0:03:00.1]} 3... d5 {[%clk 0:02:42.4]}
4. Nd2 {[%clk 0:02:59.7]} 4... Nc6 {[%clk 0:02:37]} 5. c3 {[%clk 0:02:59.4]}
5... cxd4 {[%clk 0:02:33.1]} 6. exd4 {[%clk 0:02:59]} 6... Bf5 {[%clk
0:02:33.3]} 7. Qb3 {[%clk 0:02:52.9]} 7... Qc8 {[%clk 0:02:29.1]} 8. Ngf3 {[%clk
0:02:52.5]} 8... e6 {[%clk 0:02:28.4]} 9. Be2 {[%clk 0:02:46.1]} 9... Ne4 {[%clk
0:02:20.1]} 10. O-O {[%clk 0:02:43.8]} 10... Bd6 {[%clk 0:02:16.4]} 11. Bxd6
{[%clk 0:02:38.8]} 11... Nxd6 {[%clk 0:02:17.3]} 12. Nh4 {[%clk 0:02:34.7]}
12... O-O {[%clk 0:02:09.7]} 13. Nxf5 {[%clk 0:02:33]} 13... Nxf5 {[%clk
0:02:09.1]} 14. Bd3 {[%clk 0:02:33.5]} 14... Nd6 {[%clk 0:02:08.6]} 15. Rae1
{[%clk 0:02:29.6]} 15... b5 {[%clk 0:02:05.8]} 16. a3 {[%clk 0:02:26.5]} 16...
Rb8 {[%clk 0:01:58.3]} 17. f4 {[%clk 0:02:25.9]} 17... f5 {[%clk 0:01:53.2]} 18.
Nf3 {[%clk 0:02:20.4]} 18... Ne4 {[%clk 0:01:50.7]} 19. Bxe4 {[%clk 0:02:19.6]}
19... fxe4 {[%clk 0:01:48.5]} 20. Ne5 {[%clk 0:02:19.9]} 20... Nxe5 {[%clk
0:01:46.6]} 21. fxe5 {[%clk 0:02:18.7]} 21... Qc4 {[%clk 0:01:47.1]} 22. Qb4
{[%clk 0:02:13.5]} 22... Rxf1+ {[%clk 0:01:38.7]} 23. Rxf1 {[%clk 0:02:13.2]}
23... Qc7 {[%clk 0:01:39.6]} 24. a4 {[%clk 0:02:01.7]} 24... a5 {[%clk
0:01:35.2]} 25. Qb3 {[%clk 0:01:56.8]} 25... b4 {[%clk 0:01:32.1]} 26. cxb4
{[%clk 0:01:42.9]} 26... Rxb4 {[%clk 0:01:29.4]} 27. Qh3 {[%clk 0:01:43.2]}
27... Qe7 {[%clk 0:01:21.6]} 28. Rc1 {[%clk 0:01:43.3]} 28... Qd7 {[%clk
0:01:17.5]} 29. Rc5 {[%clk 0:01:36.7]} 29... Rxd4 {[%clk 0:01:14.1]} 30. Qc3
{[%clk 0:01:27.7]} 30... Rd1+ {[%clk 0:01:06.8]} 31. Kf2 {[%clk 0:01:27.4]}
31... Qf7+ {[%clk 0:01:06.4]} 32. Kg3 {[%clk 0:01:27.4]} 32... Rd3+ {[%clk
0:00:34.6]} 33. Qxd3 {[%clk 0:01:27]} 33... Qg6+ {[%clk 0:00:34.6]} 0-1